bitfinex/quotes_ETHUSD_20240730
["timestamp","ask_amount","ask_price","bid_price","bid_amount"]
[1722307739541,7.37,3309.4,3309.1,2.41756]
[1722307739904,8.31518532,3309.4,3309.3,35.0]
[1722307740112,0.94518532,3309.5,3309.3,35.0]
[1722307740313,0.94518532,3309.5,3308.7,4.85915]
[1722307740314,0.94518532,3309.4,3309.0,2.41758]
[1722307740621,1.26024709,3309.6,3309.0,2.41758]
[1722307740622,0.94518532,3309.5,3309.0,2.41758]
[1722307740802,1.26024709,3309.6,3309.4,35.0]
[1722307741002,2.41713,3309.7,3309.4,35.0]
[1722307741003,0.94548165,3309.5,3309.4,35.0]
[1722307741608,0.94548165,3309.5,3309.4,39.91005]
[1722307741808,0.94595328,3309.8,3309.4,42.95906288]
[1722307742047,0.94595328,3309.9,3309.4,7.95906288]
[1722307742245,0.94595328,3309.8,3309.5,2.41726]
[1722307743126,8.63127105,3310.0,3309.4,2.55312705]
[1722307743127,0.94595328,3309.9,3309.6,2.41718]
[1722307743319,0.94595328,3309.9,3309.8,35.0]
[1722307743982,0.06604944,3309.9,3309.8,35.0]
[1722307744114,3.74431049,3309.9,3309.8,35.0]
[1722307744302,2.48303944,3309.9,3309.8,35.0]
[1722307744509,4.90002944,3309.9,3309.8,35.0]
[1722307744964,6.79414854,3309.9,3309.8,35.0]
[1722307745130,5.27003088,3309.9,3309.8,35.0]
[1722307747947,13.56002088,3309.9,3309.8,35.0]
[1722307748281,2.41772,3308.9,3308.1,3.099122]
[1722307748463,0.94738285,3308.6,3308.1,2.3817]
[1722307748642,0.94738285,3308.6,3308.2,2.41823]
[1722307748822,1.26317713,3308.7,3308.2,2.41823]
[1722307748823,0.94738285,3308.5,3308.2,2.41823]
[1722307749179,0.06578402,3308.5,3308.4,35.0]
[1722307749324,0.06578402,3308.5,3308.4,42.88517288]
[1722307749847,0.94738285,3309.0,3308.4,38.04901288]
[1722307750063,0.94738285,3309.2,3308.9,2.41772]
[1722307750371,8.63317713,3309.3,3308.9,2.41772]
[1722307750372,0.94738285,3309.3,3309.2,2.4175]
[1722307750574,1.26317713,3309.4,3309.2,2.4175]
[1722307751080,7.37,3309.7,3309.3,35.0]
[1722307751238,0.94862653,3309.4,3309.3,39.74422]
[1722307752456,0.94862653,3309.5,3309.3,39.74422]
[1722307752662,0.94862653,3309.4,3309.3,4.74422]
[1722307753025,0.94862653,3309.4,3309.3,39.74422]
[1722307753222,0.94862653,3309.6,3309.4,2.41735]
[1722307753461,1.26478246,3309.6,3309.3,40.37581288]
[1722307753658,1.26478246,3309.5,3309.3,4.74422]
[1722307754027,1.26478246,3309.5,3309.4,35.0]
[1722307754561,1.58169828,3309.6,3309.4,35.0]
[1722307754769,1.58169828,3309.5,3309.1,2.41754]
[1722307755089,1.2653914,3309.3,3309.1,2.41754]
[1722307755436,1.2653914,3309.3,3309.1,2.41756]
[1722307755659,0.94913148,3309.2,3309.1,2.41756]
[1722307756178,1.2653914,3309.3,3309.2,2.4175]
[1722307756364,0.94916093,3309.3,3309.2,2.4175]
[1722307756962,0.94916093,3309.3,3309.2,37.901013]
[1722307757138,0.94916093,3309.6,3309.3,2.41742]
[1722307757337,0.94916093,3309.6,3309.3,2.47784809]
[1722307757529,7.37,3309.7,3309.4,2.41735]
[1722307757530,0.94905134,3309.5,3309.4,2.41735]
[1722307757725,0.94905134,3309.6,3309.5,2.41728]
[1722307757930,0.94905134,3309.6,3309.5,37.41728]
[1722307759074,0.06580473,3309.6,3309.5,42.88357288]
[1722307759276,0.06580473,3309.6,3309.5,45.21287288]
[1722307759647,0.94905134,3310.1,3309.8,2.41705]
[1722307760173,0.06626503,3310.0,3309.9,2.41699]
[1722307760858,0.06626503,3310.0,3309.9,39.83398]
[1722307761030,0.06626503,3310.0,3309.9,42.88299288]
[1722307761238,8.63537256,3310.3,3310.1,2.41684]
[1722307761460,8.31928237,3310.3,3310.1,2.41684]
[1722307762732,8.31928237,3310.3,3310.2,2.41677]
[1722307763130,8.31928237,3310.3,3310.2,37.41677]
[1722307763588,7.37,3310.3,3310.2,37.41677]
[1722307763731,7.37,3310.3,3310.2,40.46578288]
[1722307764169,4.5e-06,3310.4,3310.3,4.83338]
[1722307764375,4.5e-06,3310.4,3310.3,4.89378897]
[1722307764867,4.5e-06,3310.4,3310.3,39.89378897]
[1722307765174,4.5e-06,3310.4,3310.3,39.83338]
[1722307765476,4.5e-06,3310.4,3310.3,37.41669]
[1722307766017,4.5e-06,3310.4,3310.3,42.88239288]
[1722307766181,4.5e-06,3310.4,3310.3,45.88239288]
[1722307766669,4.5e-06,3310.4,3310.3,48.29908288]
[1722307766869,4.5e-06,3310.4,3310.3,45.88239288]
[1722307767455,4.5e-06,3310.4,3310.3,48.29908288]
[1722307767655,4.5e-06,3310.4,3310.3,45.88239288]
[1722307768362,4.5e-06,3310.4,3310.3,48.29908288]
[1722307769568,4.5e-06,3310.4,3310.3,45.88239288]
[1722307769859,4.5e-06,3310.4,3310.3,48.29908288]
[1722307770287,4.5e-06,3310.4,3310.3,45.88239288]
[1722307772581,4.5e-06,3310.4,3310.3,48.29908288]
[1722307772909,4.5e-06,3310.4,3310.3,45.88239288]
[1722307773678,4.5e-06,3310.4,3310.3,48.29908288]
[1722307773870,4.5e-06,3310.4,3310.3,50.75808288]
[1722307775393,4.5e-06,3310.4,3310.3,48.34139288]
[1722307777033,4.5e-06,3310.4,3310.3,52.25808288]
[1722307777270,4.5e-06,3310.4,3310.3,50.75808288]
[1722307777428,4.5e-06,3310.4,3310.3,52.25808288]
[1722307777922,7.37,3311.4,3311.3,2.41596]
[1722307778092,12.41,3311.9,3311.4,2.41587]
[1722307778282,12.41,3311.9,3311.5,2.4158]
[1722307778477,12.41,3311.9,3311.8,35.0]
[1722307780882,12.41,3311.9,3311.8,37.4156]
[1722307781431,12.41,3311.9,3311.8,35.0]
[1722307782132,17.24106,3311.9,3311.8,35.0]
[1722307782363,2.41553,3311.9,3311.8,35.0]
[1722307782849,4.83106,3311.9,3311.8,35.0]
[1722307782994,2.41553,3311.9,3311.8,35.0]
[1722307783395,4.83106,3311.9,3311.8,35.0]
[1722307783728,2.4162,3311.0,3310.3,2.41669]
[1722307783930,2.41572,3311.7,3310.3,2.41669]
[1722307783931,2.41604,3311.2,3310.4,2.41657]
[1722307784130,2.41604,3311.2,3310.5,2.41652]
[1722307784445,2.41604,3311.2,3310.7,35.0]
[1722307785353,2.41612,3311.1,3310.7,35.0]
[1722307786574,2.41597,3311.3,3310.7,35.0]
[1722307786857,7.37,3311.4,3310.7,35.0]
[1722307787064,7.37,3311.4,3310.7,3.04901288]
[1722307787210,7.37,3311.4,3310.8,2.41632]
[1722307787421,7.37,3311.4,3311.2,35.0]
[1722307787741,2.41596,3311.3,3311.2,35.0]
[1722307788427,2.41582,3311.5,3311.2,35.0]
[1722307788941,3.35991696,3311.7,3311.2,35.0]
[1722307788942,2.48246879,3311.4,3311.2,35.0]
[1722307789267,0.06657879,3311.4,3311.2,35.0]
[1722307789631,2.41569,3311.7,3311.2,35.0]
[1722307789865,0.06657466,3311.3,3311.2,35.0]
[1722307790065,4.90424,3311.8,3311.2,35.0]
[1722307790580,2.41575,3311.6,3311.2,35.0]
[1722307791226,0.06657466,3311.5,3311.2,35.0]
[1722307793636,0.06657466,3311.5,3311.2,37.41604]
[1722307793839,7.37,3311.9,3311.2,40.46505288]
[1722307794038,0.06657466,3311.4,3311.3,7.26811588]
[1722307794365,7.37,3311.9,3311.3,2.43619588]
[1722307794581,7.37,3311.9,3311.8,2.4156]
[1722307795046,7.37,3311.9,3311.6,2.41574]
[1722307795244,7.37,3311.9,3311.6,2.898902]
[1722307795768,9.78553,3311.9,3311.8,35.0]
[1722307796412,10.73110698,3311.9,3311.8,35.0]
[1722307796920,9.78553,3311.9,3311.8,35.0]
[1722307797447,3.36110698,3311.9,3311.8,35.0]
[1722307798277,2.41553,3311.9,3311.8,35.0]
[1722307799322,1.26144941,3312.0,3311.8,35.0]
[1722307799545,0.94631108,3312.1,3311.8,4.30829596]
[1722307799681,1.57681177,3312.4,3311.8,2.41559]
[1722307799682,0.94631108,3312.2,3311.8,2.41559]
[1722307800347,0.94631108,3312.3,3312.2,2.41531]
[1722307800480,0.94631108,3312.4,3312.2,2.41531]
[1722307800676,8.31631108,3312.5,3312.2,2.41531]
[1722307801121,10.73140108,3312.5,3311.8,2.4156]
[1722307801320,0.94631108,3312.3,3311.8,2.4156]
[1722307801694,0.94631108,3312.4,3311.8,2.4156]
[1722307802384,11.04654941,3312.5,3311.9,2.41546]
[1722307802385,0.94631108,3312.3,3311.9,2.41546]
[1722307802811,0.94631108,3312.3,3311.7,4.79146]
[1722307802993,0.94631108,3312.3,3311.3,4.67775]
[1722307803192,0.94631108,3312.2,3311.7,2.41565]
[1722307803508,0.94631108,3312.1,3311.8,0.06038752]
[1722307803729,0.94631108,3312.2,3311.8,2.47598752]
[1722307803905,0.06743655,3312.0,3311.8,2.4156]
[1722307804107,0.94631108,3312.2,3311.3,2.2618]
[1722307804353,0.94631108,3312.1,3311.9,2.41552]
[1722307804804,0.94631108,3312.0,3311.4,0.22618]
[1722307804996,0.94631108,3312.0,3311.7,2.41567]
[1722307805522,0.94631108,3311.9,3311.7,2.41567]
[1722307806090,0.94631108,3312.0,3311.7,2.41567]
[1722307806792,0.94631108,3312.0,3311.5,2.41582]
[1722307806992,0.94631108,3311.9,3311.5,2.41582]
[1722307807194,0.94631108,3311.8,3311.1,2.41609]
[1722307807543,0.94631108,3311.5,3310.9,4.69064]
[1722307807705,0.94631108,3311.4,3311.0,2.41618]
[1722307808340,0.94631108,3311.3,3311.2,2.41604]
[1722307808895,0.94631108,3311.4,3311.3,2.41596]
[1722307809144,0.94631108,3311.5,3311.3,2.41596]
[1722307809347,0.94631108,3311.5,3311.2,2.41604]
[1722307809348,0.94631108,3311.5,3311.4,2.41588]
[1722307809705,0.94631108,3311.6,3311.4,2.41588]
[1722307810026,0.94631108,3311.6,3310.9,2.2744]
[1722307810027,0.94631108,3311.5,3310.9,2.2744]
[1722307810231,0.94745291,3311.2,3311.0,2.41613]
[1722307810836,0.94745291,3311.2,3311.1,2.41611]
[1722307812169,0.94745291,3311.3,3311.1,2.41611]
[1722307812381,0.94745291,3311.3,3311.2,7.31068]
[1722307812670,0.94745291,3311.5,3311.4,4.83178]
[1722307812833,0.94808961,3311.6,3311.4,0.79142749]
[1722307813033,1.58014936,3311.9,3311.8,2.4156]
[1722307813034,0.94808961,3311.9,3311.8,2.4156]
[1722307813283,7.37,3312.5,3312.0,2.41539]
[1722307813430,0.94818003,3312.1,3311.9,2.41553]
[1722307813971,0.94818003,3312.0,3311.9,2.41553]
[1722307814185,0.94818003,3312.0,3311.9,2.9046773]
[1722307814663,0.94818003,3312.0,3311.9,5.3202073]
[1722307815370,1.26423919,3312.1,3311.9,2.9046773]
[1722307815533,0.94798239,3312.0,3311.9,2.41553]
[1722307815732,1.26423919,3312.1,3311.9,2.41553]
[1722307816173,1.26423919,3312.0,3311.9,2.41553]
[1722307816368,1.57971667,3312.2,3311.7,2.41565]
[1722307816369,1.26423919,3312.1,3312.0,2.41545]
[1722307817574,1.26423919,3312.1,3311.8,2.4156]
[1722307817774,1.26369787,3311.9,3311.8,2.4156]
[1722307818422,1.26369787,3312.0,3311.8,2.4156]
[1722307818840,1.26369787,3312.0,3311.6,2.41573]
[1722307819068,0.94779601,3311.7,3311.6,2.41573]
[1722307819461,0.94779601,3311.7,3311.5,2.41581]
[1722307819626,0.94779601,3311.6,3311.3,2.41592]
[1722307819978,0.94765176,3311.5,3311.3,2.41592]
[1722307820144,0.94765176,3311.4,3311.3,2.41592]
[1722307820474,1.01508831,3311.4,3311.3,2.41592]
[1722307820656,1.01508831,3311.4,3311.0,2.41615]
[1722307820864,1.01508831,3311.4,3310.2,5.0234]
[1722307820865,0.94765176,3311.3,3310.2,5.0234]
[1722307821022,0.94765176,3311.1,3310.7,2.41634]
[1722307821428,0.94765176,3311.0,3310.7,2.41634]
[1722307821656,0.06725428,3310.9,3310.7,2.41634]
[1722307822177,0.06725428,3310.9,3310.8,2.41633]
[1722307822709,1.26413587,3311.4,3311.2,2.3354]
[1722307822891,0.94835016,3312.1,3312.0,2.41545]
[1722307823094,0.94835016,3312.3,3312.0,5.0234]
[1722307823396,0.94835016,3312.5,3312.3,4.83048]
[1722307823586,8.31835016,3312.6,3312.5,2.41509]
[1722307823937,7.37,3312.6,3312.4,2.41516]
[1722307824135,7.37,3312.6,3312.3,0.48908573]
[1722307824136,7.37,3312.6,3312.5,4.83018]
[1722307824559,7.37,3312.6,3312.5,2.41509]
[1722307824765,8.31810582,3312.6,3312.5,2.41509]
[1722307825273,2.41429,3313.6,3312.5,2.3354]
[1722307825480,0.94784254,3313.4,3313.3,5.10251]
[1722307825629,2.21202321,3314.3,3313.4,4.82886]
[1722307825630,0.94784254,3313.6,3313.4,4.82886]
[1722307825830,0.94784254,3313.7,3313.6,2.41429]
[1722307826272,0.94784254,3313.9,3313.7,2.41421]
[1722307827377,0.94784254,3314.0,3313.7,4.82842]
[1722307828636,0.94784254,3314.1,3313.7,4.82842]
[1722307828837,0.94594206,3314.1,3313.7,4.82842]
[1722307829354,0.94594206,3314.2,3313.7,4.82842]
[1722307829549,0.94594206,3314.2,3313.7,2.41421]
[1722307830068,7.37,3314.3,3313.7,2.41421]
[1722307830069,0.94594206,3314.1,3313.7,2.41421]
[1722307830310,7.37,3314.3,3313.7,2.41421]
[1722307830311,0.20320462,3313.8,3313.7,2.41421]
[1722307830580,0.20320462,3313.8,3313.3,2.4145]
[1722307830928,0.20320462,3313.8,3313.4,2.41442]
[1722307831372,0.20320462,3313.8,3313.6,2.41422]
[1722307831682,0.20320462,3313.8,3313.2,2.41454]
[1722307831830,0.20320462,3313.8,3312.6,2.3872]
[1722307832034,0.242148,3313.8,3313.2,2.41455]
[1722307834165,3.60225006,3313.8,3312.9,2.41478]
[1722307834382,2.41436,3313.5,3312.7,2.4149]
[1722307834534,0.482858,3313.5,3312.8,0.06036278]
[1722307834734,0.09369181,3313.4,3313.1,2.41465]
[1722307835073,1.09111318,3313.8,3313.1,2.41465]
[1722307835288,0.09364621,3313.3,3313.1,2.41465]
[1722307835583,3.50530318,3313.8,3313.1,2.41465]
[1722307835732,0.09364621,3313.2,3313.1,2.41465]
[1722307836227,3.50530318,3313.8,3313.1,2.41465]
[1722307836431,1.18117653,3313.7,3313.2,2.41458]
[1722307836632,1.18117653,3313.7,3313.0,2.41467]
[1722307836834,3.59539653,3313.7,3313.0,2.41467]
[1722307837145,3.59539653,3313.7,3313.3,2.41449]
[1722307837146,0.09364621,3313.7,3313.3,2.41449]
[1722307837659,0.1463045,3313.8,3313.4,2.41443]
[1722307837660,0.09361718,3313.6,3313.4,2.41443]
[1722307837906,0.1463045,3313.8,3313.3,2.41449]
[1722307838111,0.1463045,3313.8,3313.6,2.41427]
[1722307838978,0.1463045,3313.8,3313.7,2.41421]
[1722307839225,0.1463045,3313.8,3313.7,5.31731142]
[1722307840631,0.1463045,3313.8,3313.7,2.90310142]
[1722307840785,0.1463045,3313.8,3313.7,2.41421]
[1722307841291,0.1463045,3313.8,3313.5,2.41435]
[1722307841483,0.1463045,3313.8,3313.7,2.41421]
[1722307842369,0.1463045,3313.8,3313.5,2.41432]
[1722307842520,0.1463045,3313.8,3313.6,2.41428]
[1722307843049,0.1463045,3313.8,3313.7,2.41421]
[1722307843250,0.1463045,3313.8,3313.7,2.90309205]
[1722307843952,0.1463045,3313.8,3313.7,5.31730205]
[1722307846644,0.1463045,3313.8,3313.7,5.37764449]
[1722307847943,0.1463045,3313.8,3313.7,5.31730205]
[1722307848862,0.1463045,3313.8,3313.7,5.37764454]
[1722307849176,0.1463045,3313.8,3313.7,8.05564454]
[1722307849177,0.24041073,3313.8,3313.7,8.05564454]
[1722307849380,0.24041073,3313.8,3313.7,12.83535454]
[1722307849545,0.1463045,3313.8,3313.7,15.83535454]
[1722307850569,0.1463045,3313.8,3313.7,13.36080205]
[1722307851181,0.1463045,3313.8,3313.7,5.90309205]
[1722307851341,0.1463045,3313.8,3313.7,5.41421]
[1722307851680,0.1463045,3313.8,3313.7,7.82842]
[1722307852054,0.1463045,3313.8,3313.7,5.41421]
[1722307852642,0.1463045,3313.8,3313.7,7.50642]
[1722307852912,0.1463045,3313.8,3313.7,15.39133]
[1722307853086,0.1463045,3313.8,3313.7,17.171899]
[1722307853290,0.1463045,3313.8,3313.7,14.757689]
[1722307853459,0.1463045,3313.8,3313.7,17.171899]
[1722307853785,0.1463045,3313.8,3313.7,14.757689]
[1722307854940,0.1463045,3313.8,3313.7,17.171899]
[1722307857295,0.1463045,3313.8,3313.7,18.671899]
[1722307858403,0.1463045,3313.8,3313.7,21.086109]
[1722307858601,4.5e-06,3313.8,3313.7,21.636109]
[1722307859631,4.5e-06,3313.8,3313.7,19.221899]
[1722307860017,4.5e-06,3313.8,3313.7,21.636109]
[1722307860222,4.5e-06,3313.8,3313.7,19.221899]
[1722307861334,4.5e-06,3313.8,3313.7,18.671899]
[1722307861538,4.5e-06,3313.8,3313.7,21.086109]
[1722307861735,4.5e-06,3313.8,3313.7,19.221899]
[1722307861923,4.5e-06,3313.8,3313.7,21.636109]
[1722307862794,0.00180903,3314.9,3314.8,4.82682]
[1722307863023,0.00180903,3314.9,3314.8,7.987502]
[1722307863233,0.00180903,3314.9,3314.8,10.400912]
[1722307863394,0.00180903,3314.9,3314.8,13.400912]
[1722307864328,0.00180903,3314.9,3314.8,13.950912]
[1722307864635,0.00180903,3314.9,3314.8,16.364322]
[1722307865039,0.00180903,3314.9,3314.8,51.364322]
[1722307866136,9.03e-06,3314.9,3314.8,51.364322]
[1722307869229,9.03e-06,3314.9,3314.8,53.757322]
[1722307871402,9.03e-06,3314.9,3314.8,53.207322]
[1722307871601,9.03e-06,3314.9,3314.8,53.757322]
[1722307872136,9.03e-06,3314.9,3314.8,53.207322]
[1722307872811,9.03e-06,3314.9,3314.8,45.722912]
[1722307873212,9.03e-06,3314.9,3314.8,43.309502]
[1722307873921,9.03e-06,3314.9,3314.8,35.0]
[1722307874444,9.03e-06,3314.9,3314.8,39.82682]
[1722307874597,9.03e-06,3314.9,3314.8,37.41341]
[1722307875048,9.03e-06,3314.9,3314.8,39.82682]
[1722307875357,9.03e-06,3314.9,3314.8,37.41341]
[1722307875507,9.03e-06,3314.9,3314.8,39.82682]
[1722307875899,9.03e-06,3314.9,3314.8,42.87583288]
[1722307876098,9.03e-06,3314.9,3314.8,48.28924288]
[1722307876954,9.03e-06,3314.9,3314.8,45.87583288]
[1722307877803,9.03e-06,3314.9,3314.8,48.28924288]
[1722307884807,9.03e-06,3314.9,3314.8,50.70265288]
[1722307885009,9.03e-06,3314.9,3314.8,49.78924288]
[1722307885246,3.44329168,3316.5,3316.1,2.41241]
[1722307885444,2.4994,3316.5,3316.3,2.41226]
[1722307885852,2.4994,3316.5,3316.4,35.0]
[1722307886150,2.4994,3316.5,3316.4,37.41225]
[1722307886364,2.4994,3316.5,3316.4,35.0]
[1722307887564,2.4994,3316.5,3316.4,37.41225]
[1722307888579,2.4994,3316.5,3316.4,35.0]
[1722307888937,2.4994,3316.5,3316.4,37.41225]
[1722307889431,2.4994,3316.5,3316.4,39.8245]
[1722307889632,7.37,3316.8,3316.7,2.41203]
[1722307889987,0.1463045,3317.1,3317.0,2.41181]
[1722307890191,0.1463045,3317.1,3317.0,4.82362]
[1722307890588,0.1463045,3317.1,3317.0,39.82362]
[1722307900512,0.1463045,3317.1,3317.0,42.82362]
[1722307900731,0.1463045,3317.1,3317.0,45.87263288]
[1722307901930,0.1463045,3317.1,3317.0,48.28444288]
[1722307909405,0.1463045,3317.1,3317.0,50.69625288]
[1722307909622,0.1463045,3317.1,3317.0,48.28444288]
[1722307911350,0.1463045,3317.1,3317.0,49.78444288]
[1722307912833,0.1463045,3317.1,3317.0,52.19625288]
[1722307913104,4.5e-06,3317.1,3317.0,52.74625288]
[1722307913556,2.3198,3318.5,3318.4,2.4108]
[1722307913773,2.3198,3318.5,3318.4,2.65188]
[1722307913919,2.4109181,3318.5,3318.4,2.65188]
[1722307914266,2.4109181,3318.5,3318.4,37.4108]
[1722307914562,2.3198,3318.5,3318.4,37.4108]
[1722307915255,2.3198,3318.5,3318.4,35.0]
[1722307917438,4.73052,3318.5,3318.4,35.0]
[1722307917642,4.82215058,3318.5,3318.4,35.0]
[1722307917893,2.41143058,3318.5,3318.4,35.0]
[1722307919085,0.09163058,3318.5,3318.4,35.0]
[1722307919284,2.4635,3318.8,3318.4,35.0]
[1722307919439,0.09153142,3318.7,3318.3,2.41082]
[1722307919645,2.4635,3318.8,3318.3,2.41082]
[1722307919885,2.4635,3318.8,3318.7,35.0]
[1722307920626,7.53085,3318.8,3318.7,35.0]
[1722307920764,9.94135,3318.8,3318.7,35.0]
[1722307921185,10.88421078,3318.8,3318.7,35.0]
[1722307921744,8.47371078,3318.8,3318.7,35.0]
[1722307922488,7.53085,3318.8,3318.7,35.0]
[1722307923001,6.06347474,3318.8,3318.7,35.0]
[1722307923298,2.4635,3318.8,3318.7,35.0]
[1722307923853,2.4767,3319.1,3318.7,37.41058]
[1722307924095,0.08532185,3319.0,3318.7,37.41058]
[1722307924300,0.08532185,3319.0,3318.7,35.0]
[1722307924495,0.08532185,3319.0,3318.5,2.41068]
[1722307924791,0.08532185,3319.0,3318.6,2.41065]
[1722307925091,0.08532185,3319.0,3318.9,35.0]
[1722307926002,2.49568185,3319.0,3318.9,35.0]
[1722307926162,5.89924404,3319.0,3318.9,35.0]
[1722307926349,9.32996878,3319.0,3318.9,35.0]
[1722307926554,8.38684404,3319.0,3318.9,35.0]
[1722307926885,12.05435175,3319.0,3318.9,35.0]
[1722307927046,12.91905793,3319.0,3318.9,35.0]
[1722307927697,12.91905793,3319.0,3317.5,2.41145]
[1722307927698,2.3242,3318.1,3317.5,2.41145]
[1722307927862,4.73523,3318.1,3317.3,2.678]
[1722307928065,4.73523,3318.1,3318.0,35.0]
[1722307928793,7.14626,3318.1,3318.0,35.0]
[1722307928997,7.95531023,3318.1,3318.0,35.0]
[1722307929282,9.52904742,3318.1,3318.0,35.0]
[1722307930091,7.95531023,3318.1,3318.0,35.0]
[1722307930391,9.53069339,3318.1,3318.0,35.0]
[1722307930596,7.95531023,3318.1,3318.0,35.0]
[1722307931214,9.53149691,3318.1,3318.0,35.0]
[1722307931414,7.95531023,3318.1,3318.0,35.0]
[1722307932114,8.32340305,3318.1,3318.0,35.0]
[1722307932274,10.21618123,3318.1,3318.0,35.0]
[1722307933476,8.32340305,3318.1,3318.0,35.0]
[1722307935293,3.50134305,3318.1,3318.0,35.0]
[1722307935495,7.14622,3318.1,3318.0,35.0]
[1722307936399,7.5143183,3318.1,3318.0,35.0]
[1722307936780,7.70847843,3318.1,3318.0,35.0]
[1722307937025,7.5143183,3318.1,3318.0,35.0]
[1722307937208,8.72789831,3318.1,3318.0,35.0]
[1722307937418,8.92211458,3318.1,3318.0,35.0]
[1722307937613,8.72789831,3318.1,3318.0,35.0]
[1722307938411,11.13261952,3318.1,3318.0,35.0]
[1722307938794,8.72789831,3318.1,3318.0,35.0]
[1722307939219,8.81267211,3318.1,3318.0,35.0]
[1722307940023,9.0068998,3318.1,3318.0,35.0]
[1722307940400,11.21745332,3318.1,3318.0,35.0]
[1722307940602,9.0068998,3318.1,3318.0,35.0]
[1722307940819,8.81267211,3318.1,3318.0,35.0]
[1722307941214,2.41137,3317.7,3317.0,2.41181]
[1722307941380,0.94738081,3317.3,3317.1,0.241181]
[1722307941781,0.94738081,3317.3,3317.2,35.0]
[1722307942785,0.94738081,3317.4,3317.2,35.0]
[1722307943011,0.94738081,3317.3,3316.9,2.41188]
[1722307943249,0.94738081,3317.4,3316.9,2.41188]
[1722307943458,0.94738081,3317.4,3317.3,35.0]
[1722307943656,1.26317441,3317.5,3317.3,35.0]
[1722307944162,1.26317441,3317.5,3317.1,2.41174]
[1722307944320,0.94734494,3317.3,3317.2,0.2652928]
[1722307944518,0.94734494,3317.3,3317.2,35.2652928]
[1722307944719,0.94734494,3317.3,3317.2,37.6769628]
[1722307945162,0.94734494,3317.3,3317.2,35.2652928]
[1722307945515,0.94734494,3317.4,3317.2,35.2652928]
[1722307945834,1.26317441,3317.4,3317.2,0.2652928]
[1722307946047,1.26317441,3317.4,3317.0,2.652958]
[1722307946232,3.99038549,3317.5,3317.3,35.0]
[1722307946430,1.26316607,3317.4,3317.3,35.0]
[1722307946631,1.26316607,3317.4,3316.9,2.41188]
[1722307946832,0.94732639,3317.2,3316.9,3.138301]
[1722307947039,1.26316607,3317.4,3317.1,35.0]
[1722307947040,0.94732639,3317.3,3317.1,35.0]
[1722307947221,0.94732639,3317.2,3317.1,35.0]
[1722307947757,0.94732639,3317.3,3317.1,35.0]
[1722307947958,0.94732639,3317.3,3316.9,3.138301]
[1722307948166,0.94732639,3317.2,3317.0,0.3138301]
[1722307948374,0.94732639,3317.2,3317.1,35.0]
[1722307949181,0.94724797,3317.2,3317.1,35.0]
[1722307950071,5.77058797,3317.2,3317.1,35.0]
[1722307950236,3.11502853,3317.2,3317.1,35.0]
[1722307950573,2.41167,3317.2,3317.1,35.0]
[1722307950777,4.82334,3317.2,3317.1,35.0]
[1722307951880,7.23501,3317.2,3317.1,35.0]
[1722307952169,7.79789284,3317.2,3317.1,35.0]
[1722307952374,7.60326258,3317.2,3317.1,35.0]
[1722307952663,12.02218766,3317.2,3317.1,35.0]
[1722307952871,14.232202,3317.2,3317.1,35.0]
[1722307953472,2.41233,3316.3,3315.5,4.72676]
[1722307953633,0.94646415,3316.2,3315.6,2.41282]
[1722307953972,0.94646415,3316.2,3315.9,35.0]
[1722307954142,0.08436677,3316.1,3315.9,35.0]
[1722307954343,2.49684677,3316.1,3315.7,0.472672]
[1722307954548,2.41254,3316.0,3315.5,2.3139]
[1722307954764,2.4966367,3316.0,3315.9,35.0]
[1722307955575,3.44278467,3316.0,3315.9,35.0]
[1722307955884,4.9091767,3316.0,3315.9,35.0]
[1722307956052,7.1651767,3316.0,3315.9,35.0]
[1722307956646,8.42670733,3316.0,3315.9,35.0]
[1722307956981,7.1651767,3316.0,3315.9,35.0]
[1722307957935,2.4966367,3316.0,3315.9,35.0]
[1722307958173,4.9091767,3316.0,3315.9,35.0]
[1722307958368,6.1695028,3316.0,3315.9,35.0]
[1722307958788,3.7569628,3316.0,3315.9,35.0]
[1722307959154,6.1695028,3316.0,3315.9,35.0]
[1722307961455,3.7569628,3316.0,3315.9,35.0]
[1722307961883,2.4966367,3316.0,3315.9,35.0]
[1722307964513,0.0840967,3316.0,3315.9,35.0]
[1722307964669,2.41248,3316.1,3315.9,35.0]
[1722307964874,0.08343596,3316.0,3315.4,4.68747]
[1722307965187,0.08343596,3316.0,3315.5,2.4129]
[1722307965396,2.4124,3316.2,3315.9,35.0]
[1722307965700,2.41248,3316.1,3315.4,2.984559]
[1722307966007,7.37,3316.5,3315.4,2.984559]
[1722307966008,2.41262,3315.9,3315.4,0.710059]
[1722307966318,2.41262,3315.9,3315.8,35.0]
[1722307966801,4.8253,3315.9,3315.8,35.0]
[1722307969057,4.9088191,3315.9,3315.8,35.0]
[1722307970726,5.64136101,3315.9,3315.8,35.0]
[1722307971088,8.05404101,3315.9,3315.8,35.0]
[1722307971291,8.05404101,3315.9,3314.5,2.4815]
[1722307971292,2.41327,3315.0,3314.5,2.4815]
[1722307971595,2.41312,3315.2,3314.5,2.4815]
[1722307971596,0.08337776,3314.9,3314.5,2.4815]
[1722307971917,2.41321,3315.1,3314.6,35.24815]
[1722307972128,0.08322395,3314.8,3314.6,35.24815]
[1722307972326,2.41321,3315.1,3314.6,35.24815]
[1722307972680,2.41305,3315.3,3314.6,35.24815]
[1722307972915,0.08322395,3315.0,3314.6,35.0]
[1722307973115,2.41321,3315.1,3314.6,35.0]
[1722307973555,0.08306179,3315.0,3314.6,35.0]
[1722307973718,2.41315,3315.2,3314.6,35.0]
[1722307973924,0.08288716,3315.1,3314.6,37.41356]
[1722307974127,7.37,3315.4,3314.7,3.10934544]
[1722307974340,0.08288716,3315.3,3314.8,2.4134]
[1722307974661,0.08288716,3315.3,3315.2,35.0]
[1722307975836,2.49593716,3315.3,3315.2,35.0]
[1722307976829,0.08288716,3315.3,3315.2,35.0]
[1722307979343,2.41291,3315.5,3315.2,35.0]
[1722307979537,0.08292043,3315.4,3314.8,2.41341]
[1722307979868,0.08292043,3315.4,3314.8,2.654751]